Cogmind - Beta 13 @@@ ROGUE MODE // 2024.05.29 @ 16:04:12 Player: saltine Result: Destroyed by H-55 Commando with Gauss Rifle Performance ------------- Evolutions (2) 1000 Regions Visited (5) 1000 Robots Destroyed (61) 305 Value Destroyed (1672) 1672 Prototype IDs (0) 0 Alien Tech Used (0) 0 Bonus (325) 325 TOTAL SCORE: 4302 Bonus ------- High Alert Combat Kills 125 Entered Garrisons 200 Cogmind --------- Core Integrity 0/550 Matter 29/300 Energy 84/100 System Corruption 0% Temperature Cool (0) Movement Core (250) Ox4 Location -8/Garrison Parts ------- > --- POWER (1) -------- (None) > --- PROPULSION (4) --- Titanium Leg Titanium Leg Titanium Leg > --- UTILITY (4) ------ Hardened Light Armor Plating > --- WEAPON (2) ------- Light Cannon Flak Cannon > --- INVENTORY (5) ---- Aluminum Leg Assault Rifle Flak Cannon Heavy Hammer Peak State ------------ > --- POWER ------------ Light Nuclear Core > --- PROPULSION ------- Aluminum Leg Aluminum Leg Aluminum Leg > --- UTILITY ---------- Large Storage Unit Utility Shielding Hardened Light Armor Plating > --- WEAPON ----------- Ion Cannon Minigun > --- INVENTORY -------- Light Nuclear Core Aluminum Leg Flight Unit Flight Unit Flight Unit VTOL Module VTOL Module VTOL Module Signal Interpreter Hardened Light Armor Plating Assault Rifle Light Cannon Heavy Hammer [Rating: 18] Favorites ----------- Power Light Ion Engine Engine Light Ion Engine Power Core Light Nuclear Core Propulsion Light Treads Treads Light Treads Leg Aluminum Leg Flight Unit VTOL Module Utility Large Storage Unit Storage Large Storage Unit Protection Core Shielding Weapon Heavy Assault Rifle Energy Gun EM Pulse Gun Energy Cannon Ion Cannon Ballistic Gun Heavy Assault Rifle Ballistic Cannon Light Cannon Launcher Grenade Launcher Impact Weapon Heavy Hammer Build | -11 -10 -9 -8 -8 -8 ------- Run | Yrd Mat Mat Mat Sto Gar Slots Evolved 4 | . . 2 2 . . Power . | . . . . . . Propulsion 2 | . . 1 1 . . Utility 2 | . . 1 1 . . Weapon . | . . . . . . Parts Attached 49 | 6 7 20 10 5 1 Power 7 | 1 1 3 2 . . Engine 5 | 1 1 3 . . . Core 2 | . . . 2 . . Reactor . | . . . . . . Propulsion 16 | 2 . 5 6 3 . Treads 3 | 2 . 1 . . . Leg 8 | . . 4 1 3 . Wheel . | . . . . . . Hover . | . . . . . . Flight 5 | . . . 5 . . Utility 8 | 1 4 2 . . 1 Device . | . . . . . . Storage 4 | 1 3 . . . . Processor . | . . . . . . Hackware . | . . . . . . Protection 4 | . 1 2 . . 1 Artifact . | . . . . . . Weapon 18 | 2 2 10 2 2 . Energy Gun 1 | 1 . . . . . Energy Cannon 3 | . . 2 1 . . Ballistic Gun 7 | 1 1 4 1 . . Ballistic Cannon 2 | . . . . 2 . Launcher 4 | . 1 3 . . . Special Weapon . | . . . . . . Impact Weapon 1 | . . 1 . . . Slashing Weapon . | . . . . . . Piercing Weapon . | . . . . . . Special Melee Weapon . | . . . . . . Unidentified Prototypes . | . . . . . . Parts Lost 26 | . . 9 15 1 1 Power 3 | . . . 3 . . Propulsion 13 | . . 5 6 1 1 Utility 3 | . . 1 2 . . Weapon 7 | . . 3 4 . . Highest Loss Streak 15 | . . 4 14 15 1 To Critical Strikes . | . . . . . . Average Slot Usage (%) 89 | . 96 95 67 49 54 Engine 10 | . 14 11 3 . . Treads 17 | . 28 18 . . . Leg 10 | . . 10 17 22 27 Storage 10 | . 12 11 9 . . Protection 17 | . 12 21 16 . 1 Energy Cannon 2 | . . 3 1 . . Ballistic Gun 13 | . 21 14 8 . . Ballistic Cannon 1 | . . . . 16 18 Launcher 3 | . 3 3 6 . . Naked Turns . | . . . . . . Heaviest Build 39 | 12 29 39 39 9 14 Greatest Support 63 | 40 40 63 30 51 51 Greatest Overweight (x) 7 | . . 2 7 . 4 Average Overweight (x) . | . . . 1 . 1 Largest Inventory Capacity 15 | 8 15 15 15 5 5 Average Capacity 13 | 6 11 15 14 5 5 Most Carried 15 | 2 10 15 15 5 5 Average Carried 10 | 1 5 13 13 4 4 Final Capacity 15 | 8 15 15 5 5 5 Final Carried 14 | 2 10 14 5 5 4 Class Distribution -------------------- 94% | Mutant 5% | Scavenger-Mutant Dominant Class ---------------- Mutant | -10/Materials Mutant | -9/Materials Mutant | -8/Materials Mutant | -8/Storage Mutant | -8/Garrison Resources | -11 -10 -9 -8 -8 -8 ----------- Run | Yrd Mat Mat Mat Sto Gar Matter Collected 1085 | 195 171 514 67 138 . Remotely . | . . . . . . Salvage Created 1586 | . 260 1048 112 166 . Parts 113 | . 11 85 7 10 . Haulers Intercepted 1 | . 1 . . . . Recyclers Shooed 2 | . . 2 . . . Parts Field Recycled . | . . . . . . Retrieved Matter . | . . . . . . Parts Self-Destructed . | . . . . . . Prevented . | . . . . . . Kills | -11 -10 -9 -8 -8 -8 ------- Run | Yrd Mat Mat Mat Sto Gar Combat Hostiles Destroyed 49 | . 5 33 3 8 . Melee 1 | . . 1 . . . Guns 14 | . 2 11 1 . . Cannons 10 | . . 4 . 6 . AOE 23 | . 3 16 2 2 . Classes Destroyed 9 | . 3 6 . . . Worker 1 | . . 1 . . . Builder 3 | . . 3 . . . Hauler 1 | . 1 . . . . Recycler 4 | . 1 3 . . . Operator 2 | . . 2 . . . Watcher 1 | . . 1 . . . Swarmer 15 | . . 13 . 2 . Grunt 28 | . 5 15 3 5 . Sentry 6 | . . 5 . 1 . Best Kill Streak 12 | . 4 12 2 4 . Combat Bots Only 9 | . 4 9 2 4 . Max Kills in Single Turn 3 | . 1 3 2 2 . Gunslinging . | . . . . . . Exploded 2 | . 1 2 2 2 . Melee 1 | . . 1 . . . Uniques/NPCs Destroyed . | . . . . . . Combat | -11 -10 -9 -8 -8 -8 -------- Run | Yrd Mat Mat Mat Sto Gar Hostile Shots Fired 316 | . 26 147 96 44 3 Missed 79 | . 11 40 16 12 . Damage Taken 3437 | . 229 1437 1268 452 51 Core 792 | . 38 201 374 147 32 Absorbed by Shields . | . . . . . . Redirected to Shielding 93 | . 8 53 32 . . Regen/Repaired (Parts) 56 | . . 56 . . . Core Remaining (%) 77 | 100 84 49 . . . Volleys Fired 127 | . 13 73 16 25 . Largest 2 | . 2 2 2 2 . Hottest 90 | . 60 90 85 79 . Shots Fired 217 | . 22 116 30 49 . Gun 110 | . 19 75 16 . . Cannon 83 | . . 23 11 49 . Launcher 24 | . 3 18 3 . . Special . | . . . . . . Kinetic 153 | . 13 75 16 49 . Thermal 34 | . . 23 11 . . Explosive 24 | . 3 18 3 . . Electromagnetic 6 | . 6 . . . . Robot Hit Streak 8 | . 8 8 7 8 . Robot Miss Streak 8 | . 1 3 3 8 . Penetration Max . | . . . . . . Secondary Targets . | . . . . . . Shots Hit Robots 145 | . 17 71 21 36 . Core Hits 105 | . 10 58 10 27 . Critical Kills . | . . . . . . Critical Parts Destroyed 1 | . . 1 . . . Critical Strikes 1 | . . 1 . . . Smash 1 | . . 1 . . . Melee Attacks 8 | . . 8 . . . Impact 8 | . . 8 . . . Slashing . | . . . . . . Piercing . | . . . . . . Sneak Attacks . | . . . . . . Combat Hostiles . | . . . . . . Follow-up Attacks . | . . . . . . Damage Inflicted 4233 | . 504 2463 525 741 . Guns 1034 | . 182 660 192 . . Cannons 1054 | . . 233 209 612 . Explosions 1948 | . 318 1377 124 129 . Melee 180 | . . 180 . . . Ramming 17 | . 4 13 . . . Kinetic 1581 | . 117 660 192 612 . Thermal 442 | . . 233 209 . . Explosive 1948 | . 318 1377 124 129 . Electromagnetic 65 | . 65 . . . . Impact 180 | . . 180 . . . Slashing . | . . . . . . Piercing . | . . . . . . Highest Corruption 6 | . 6 5 . . . Average Corruption 4 | . 4 3 . . . Corruption Purged . | . . . . . . Corruption Blocked . | . . . . . . Effects 14 | . 12 2 . . . Message Errors 2 | . 1 1 . . . Matter Fused 4 | . 4 . . . . Heat Flow Errors 2 | . 1 1 . . . Data Loss (minor) 4 | . 4 . . . . Data Loss (major) 1 | . 1 . . . . Misfires 1 | . 1 . . . . Overload Shots . | . . . . . . Overflow Damage 33 | . . 33 . . . Projectiles . | . . . . . . Explosions 4 | . . 4 . . . Melee 29 | . . 29 . . . Knockbacks 15 | . . 1 . 14 . Impact 1 | . . 1 . . . Kinetic 11 | . . . . 11 . Secondary 3 | . . . . 3 . Self-Inflicted Damage 315 | . . 277 . 38 . Shots 7 | . . 6 . 1 . Rammed 4 | . 1 2 1 . . Targets Rammed 9 | . 2 6 1 . . Kicked 4 | . . 4 . . . Crushed 1 | . 1 . . . . Highest Temperature 450 | . 232 206 450 35 . Average Temperature 91 | . 50 56 192 17 . Received Heat Transfer 1386 | . 114 399 693 180 . Effects 3 | . . . 3 . . Shutdowns 1 | . . . 1 . . Damage (major) 2 | . . . 2 . . Siege Activations . | . . . . . . Robots Corrupted . | . . . . . . Combat Hostiles . | . . . . . . Parts Fried 1 | . . 1 . . . Impact Corruptions 2 | . . 2 . . . Robots Melted . | . . . . . . Combat Hostiles . | . . . . . . Parts Melted . | . . . . . . Heat Transferred 703 | . . 370 333 . . Parts Sabotaged . | . . . . . . Parts Stolen . | . . . . . . Parts Stripped . | . . . . . . Power Chain Reactions . | . . . . . . Alert | -11 -10 -9 -8 -8 -8 ------- Run | Yrd Mat Mat Mat Sto Gar Peak Influence 705 | . 130 705 363 357 232 Initial 297 | . . 54 297 102 232 Average 269 | . 53 371 323 237 231 Maximum Alert Level 3 | . . 3 1 1 1 Low Security (%) 36 | 100 100 14 . 20 . Level 1 37 | . . 36 100 79 100 Level 2 22 | . . 40 . . . Level 3 4 | . . 7 . . . Level 4 . | . . . . . . Level 5 . | . . . . . . High Security . | . . . . . . Max Security . | . . . . . . Squads Dispatched 11 | . . 5 2 4 . Investigation 4 | . . 3 1 . . Extermination . | . . . . . . Reinforcement 5 | . . 2 1 2 . Assault . | . . . . . . Garrison 2 | . . . . 2 . Intercept . | . . . . . . Searches Triggered . | . . . . . . Construction Impeded 1 | . . . . 1 . Haulers Reinforced . | . . . . . . Active Scanning Responses . | . . . . . . Cargo Convoy Interrupts . | . . . . . . Stealth | -11 -10 -9 -8 -8 -8 --------- Run | Yrd Mat Mat Mat Sto Gar Distress Signals 3 | . 1 1 1 . . Communications Jammed . | . . . . . . Distress Signals . | . . . . . . Times Spotted 75 | . 10 42 12 10 1 Peak Tracking Total 10 | . 5 10 9 3 1 Tactical Retreats 1 | . . 1 . . . Traps | -11 -10 -9 -8 -8 -8 ------- Run | Yrd Mat Mat Mat Sto Gar Traps Triggered 10 | . 5 4 1 . . Indirectly . | . . . . . . Trap Hack Attempts . | . . . . . . Triggered . | . . . . . . Disarmed . | . . . . . . Reprogrammed . | . . . . . . Reused . | . . . . . . Traps Extracted . | . . . . . . Installed . | . . . . . . Triggered . | . . . . . . Machines | -11 -10 -9 -8 -8 -8 ---------- Run | Yrd Mat Mat Mat Sto Gar Machines Disabled 8 | . . 6 . 2 . Max in Single Turn 2 | . . 2 . 1 . Machines Repaired . | . . . . . . Machines Dismantled . | . . . . . . Machines Sabotaged . | . . . . . . Overloaded Fab Kills . | . . . . . . Hacking | -11 -10 -9 -8 -8 -8 --------- Run | Yrd Mat Mat Mat Sto Gar Machines Accessed 16 | . 3 11 . 2 . Terminals 12 | . 3 8 . 1 . Fabricators . | . . . . . . Repair Stations 1 | . . 1 . . . Recycling Units 2 | . . 2 . . . Scanalyzers . | . . . . . . Garrison Access 1 | . . . . 1 . Total Hacks 36 | . 7 26 . 3 . Successful 19 | . 2 15 . 2 . Failed 17 | . 5 11 . 1 . Catastrophic 1 | . 1 . . . . Database Lockouts . | . . . . . . Manual 17 | . 5 10 . 2 . Terminals 29 | . 7 20 . 2 . Fabricators . | . . . . . . Repair Stations 3 | . . 3 . . . Recycling Units 3 | . . 3 . . . Scanalyzers . | . . . . . . Garrison Access 1 | . . . . 1 . Terminal Hacks 7 | . 1 5 . 1 . Record 1 | . . . . 1 . Branch Access Points 2 | . 1 1 . . . Emergency Access Points 1 | . . 1 . . . Terminal Index 1 | . . 1 . . . Scanalyzer Index 1 | . . 1 . . . Registered Components 1 | . . 1 . . . Fabricator Hacks . | . . . . . . Repair Station Hacks 2 | . . 2 . . . Scan Component 1 | . . 1 . . . Repair 1 | . . 1 . . . Recycling Unit Hacks 2 | . . 2 . . . Report Inventory 2 | . . 2 . . . Scanalyzer . | . . . . . . Garrison Access Hacks 1 | . . . . 1 . Unlock Access 1 | . . . . 1 . Unauthorized Hacks 7 | . 1 6 . . . Terminals 7 | . 1 6 . . . Botnet 7 | . 1 6 . . . Fabricators . | . . . . . . Repair Stations . | . . . . . . Recycling Units . | . . . . . . Scanalyzers . | . . . . . . Garrison Access . | . . . . . . Data Cores Recovered . | . . . . . . Used . | . . . . . . Hacking Detections 9 | . 2 6 . 1 . Full Trace Events 2 | . . 2 . . . Feedback Events . | . . . . . . Feedback Blocked . | . . . . . . Robot Schematics Acquired . | . . . . . . Robots Built . | . . . . . . Authchips . | . . . . . . Time . | . . . . . . Total Robot Build Rating . | . . . . . . Part Schematics Acquired . | . . . . . . Parts Built . | . . . . . . Authchips . | . . . . . . Time . | . . . . . . Total Part Build Rating . | . . . . . . Parts Repaired 1 | . . 1 . . . Time 26 | . . 26 . . . Parts Recycled . | . . . . . . Recycled Matter . | . . . . . . Retrieved Matter . | . . . . . . Retrieved Components . | . . . . . . Parts Scanalyzed . | . . . . . . Part Schematics Acquired . | . . . . . . Parts Damaged . | . . . . . . Bothacking | -11 -10 -9 -8 -8 -8 ------------ Run | Yrd Mat Mat Mat Sto Gar Used RIF Installer . | . . . . . . Robots Hacked . | . . . . . . Non-combat . | . . . . . . Combat . | . . . . . . Robot Hacks Applied . | . . . . . . Relay Couplers Released . | . . . . . . Fabnet Peak Effective % . | . . . . . . Robots Rewired . | . . . . . . Allies Hacked . | . . . . . . Hacks Repelled . | . . . . . . Allies | -11 -10 -9 -8 -8 -8 -------- Run | Yrd Mat Mat Mat Sto Gar Total Allies . | . . . . . . Largest Group . | . . . . . . Highest-Rated Group . | . . . . . . Highest-Rated Ally . | . . . . . . Total Orders . | . . . . . . Ally Attacks . | . . . . . . Total Damage . | . . . . . . Kills . | . . . . . . Allies Corrupted . | . . . . . . Allies Melted . | . . . . . . Intel | -11 -10 -9 -8 -8 -8 ------- Run | Yrd Mat Mat Mat Sto Gar Robot Analysis Total . | . . . . . . Derelict Logs Recovered . | . . . . . . Drone Launches . | . . . . . . Drone Recoveries . | . . . . . . Exploration | -11 -10 -9 -8 -8 -8 ------------- Run | Yrd Mat Mat Mat Sto Gar Turns Passed 2499 | 77 588 1390 243 153 48 Spaces Moved 1190 | 45 333 615 102 61 34 Core 25 | 4 . . 4 . 17 Treads 760 | 41 333 386 . . . Legs 369 | . . 229 77 46 17 Wheels . | . . . . . . Hover . | . . . . . . Flight 36 | . . . 21 15 . Fastest Speed 27 | 50 160 160 27 32 130 Average Speed 163 | 150 160 174 164 105 142 Slowest Speed 400 | 160 160 260 400 130 250 Overloaded Moves . | . . . . . . Propulsion Burnouts . | . . . . . . Robots Hopped 1 | . . . 1 . . Cave-ins Triggered . | . . . . . . Exploration Rate (%) 21 | 3 46 55 9 10 6 Regions Visited 5 Branch Regions 1 Pre-discovered Areas . | . . . . . . Known Exits Taken 1 | . . . . 1 . Unknown Exits Taken 4 | 1 1 1 1 . . Scrap Searched . | . . . . . . Spaces Dug 2 | . . 2 . . . Terrain Destroyed 238 | . 16 173 31 18 . Melee 2 | . . 2 . . . Projectile 5 | . . 3 2 . . AOE 231 | . 16 168 29 18 . Terrain Rammed . | . . . . . . Walls Destroyed . | . . . . . . Machines Disabled . | . . . . . . Actions | -11 -10 -9 -8 -8 -8 --------- Run | Yrd Mat Mat Mat Sto Gar Total 1492 | 52 365 798 144 98 35 Wait 69 | . . 49 13 7 . Move 1183 | 44 332 614 99 60 34 Hop 1 | . . . 1 . . Pick Up 30 | 2 7 18 2 1 . Fast Attach 21 | 6 4 5 2 4 . Attach 18 | . . 8 8 1 1 Detach . | . . . . . . Swap 10 | . 3 7 . . . Drop 16 | . 4 10 2 . . Fire 127 | . 13 73 16 25 . Melee 8 | . . 8 . . . Ram 1 | . . . 1 . . Kick 4 | . . 4 . . . Crush 4 | . 2 2 . . . Escape Stasis . | . . . . . . Rewire . | . . . . . . Trap . | . . . . . . Miscellaneous . | . . . . . . Route ------- -11/Scrapyard -10/Materials (discovered 3 exits: *Mat / Min x2) -9/Materials (discovered 3 exits: [*Mat] / Min x2) -8/Materials -8/Storage -8/Garrison History --------- Turn | Location | Event 7 | -11/Scrapyard | Discovered new exit (range 15) 78 | -11/Scrapyard | Entered Materials 328 | -10/Materials | Build established: Mutant 521 | -10/Materials | Discovered new exit (range 15) 584 | -10/Materials | Identified exit to Mines 666 | -10/Materials | Entered another Materials area 666 | -9/Materials | Evolved 2 slots: Propulsion x1, Utility x1 795 | -9/Materials | Repaired Grenade Launcher 1442 | -9/Materials | Destroyed 7 combat bots 1478 | -9/Materials | Lost 4 parts (2n2w) 1899 | -9/Materials | Core integrity fell below 50% 1926 | -9/Materials | Destroyed 9 combat bots 2001 | -9/Materials | Discovered new exit (range 3) 2026 | -9/Materials | Identified exit to Mines 2056 | -9/Materials | Entered another Materials area 2056 | -8/Materials | Evolved 2 slots: Propulsion x1, Utility x1 2056 | -8/Materials | Discovered new exit (range 8) 2288 | -8/Materials | Core integrity fell below 50% 2299 | -8/Materials | Entered Storage 2317 | -8/Storage | Garrison activated, responded to threat 2329 | -8/Storage | Core integrity fell below 20% 2345 | -8/Storage | Lost 15 parts (2p7n2u4w) 2450 | -8/Storage | Identified exit to Garrison 2452 | -8/Storage | Entered Garrison 2500 | -8/Garrison | Destroyed by H-55 Commando with Gauss Rifle Last Messages --------------- 02416_ Acquired 1 matter. 02417_ S-10 Pest emerges from the garrison. 02417_ Acquired 2 matter. 02418_ S-10 Pest knocked back. 02421_ S-10 Pest destroyed. 02424_ S-10 Pest knocked back. 02434_ S-10 Pest destroyed. 02438_ K-01 Serf collects debris. 02441_ Acquired 1 matter. 02443_ Acquired 3 matter. 02450_ Connecting with Garrison Access... >>Unlock Access door unlocked. 02450_ EXIT=UNLOCKED: GARRISON LOCATION=GARRISON GOAL=ESCAPE 02497_ C-30 ARC bursts open, deploying its payload. 02497_ H-55 Commando unfolds itself. 02497_ VTOL Module destroyed. Map ----- +----------------------------------------------------+ | ?????????????????????????????????????????????????? | | ?????????????????????????????????????????????????? | | ?????????????????????????????????????????????????? | | ?????????????????????????????????????????????????? | | ?????????????????????????????????????????????????? | | ?????????????????????????????????????????????????? | | ?????????????????????????????????????????????????? | | ?????????????????????????????????????????????????? | | ?????????????????????????????????????????????????? | | ?????????????????????????????????????????????????? | | ?????????????????????????????????????????????????? | | ?????????????????????????????????????????????????? | | ?????????????????????????????????????????????????? | | ?????????????????????????????????????????????????? | | ?????????????????????????????????????????????????? | | ?????????????????????????????????????????????????? | | ?????????????????????????????????????????????????? | | ?????????????????????????????????????????????????? | | ?????????????????????????????????????????????????? | | ?????????????????????????????????????????????????? | | ?????????????????????????????????????????????????? | | ?????????????????????????????????????????????????? | | ?????????????????????????????????????????????????? | | ????????????###################### %#????????????? | | ????????????# h#????????????? | | ????????????# @ #????????????? | | ????????????# #####################?????????????? | | ????????????# #?????????????????????????????????? | | ????????????# #?????????????????????????????????? | | ????????????# #?????????????????????????????????? | | ????????????# #?????????????????????????????????? | | ????????????# #?????????????????????????????????? | | ????????????# #?????????????????????????????????? | | ????????????# #?????????????????????????????????? | | ????????????# ###???????????????????????????????? | | ????????????# #???????????????????????????????? | | ????????????# #???????????????????????????????? | | ????????????# #???????????????????????????????? | | ????????????# ###???????????????????????????????? | | ????????????# #?????????????????????????????????? | | ????????????# #?????????????????????????????????? | | ????????????# #?????????????????????????????????? | | ????????????# #?????????????????????????????????? | | ????????????# #?????????????????????????????????? | | ????????????# #?????????????????????????????????? | | ????????????# #?????????????????????????????????? | | ???????????? #?????????????????????????????????? | | ???????????? #?????????????????????????????????? | | ????????????####?????????????????????????????????? | | ?????????????????????????????????????????????????? | +----------------------------------------------------+ Best States ------------- Heat Dissipation 31 Energy Generation 14 Energy Capacity 265 Matter Stores 300 Matter Capacity 300 Sight Range 16 Terrain Scan Density 10 Armor Coverage 150 Core Shielding 20 Utility Shielding 33 Evasion (%) 63 Recoil Reduction 3 Item Schematics ----------------- None Robot Schematics ------------------ None Fabricated ------------ Nothing Alien Tech Used ----------------- None Achievements -------------- None Challenges ------------ None Game ------ Seed SpacefoldWeightSheargun Manual? 0 Play Time 00:31:47 Cumulative 15.8 hours Start 2024.05.29 @ 15:32:35 End 2024.05.29 @ 16:04:12 Sessions 1 Manual Loads 0 Difficulty Rogue Special Mode None Game No. 26 Rogue 26 Adventurer 0 Explorer 0 Win Type - Total 0 Types 0/0/0/0/0/0/0/0/0 Lore% 7 Gallery% 27 Achievement% 19 Wizard Run 0 Options --------- Layout 1 ASCII 0 Keyboard 0 Movement Arrows Keybinds 0 Fullscreen 1 Font 16/SmallcapsGlow Map View 50x35 Zoom Use 0% Tactical HUD 1 Map Filters NONE Filters NONE Steam 1 RUN: a04e7d09-e2de-4168-9984-dc4ab649c380